bitfinex/quotes_SOLUSD_20251124
["timestamp","ask_amount","ask_price","bid_price","bid_amount"]
[1763997167615,0.82,131.1,131.07,9.78882769]
[1763997168056,29.74645843,131.08,131.02,9.78882769]
[1763997168222,13.43759443,131.06,131.02,9.78882769]
[1763997168427,13.43759443,131.06,131.01,9.78882769]
[1763997168625,14.15759443,131.06,131.01,9.78882769]
[1763997168952,29.74645843,131.08,131.01,23.22642212]
[1763997169127,17.028864,131.08,131.03,23.22642212]
[1763997169326,0.72,131.07,131.01,23.22642212]
[1763997169644,0.72,131.07,131.03,23.22642212]
[1763997170024,0.72,131.07,131.03,9.78882769]
[1763997170240,0.72,131.07,131.03,23.22642212]
[1763997170427,0.1,131.1,131.06,23.22642212]
[1763997170428,0.82,131.1,131.06,23.22642212]
[1763997170636,16.308864,131.09,131.06,26.76642212]
[1763997170944,16.308864,131.09,131.06,13.32882769]
[1763997171459,0.1,131.1,131.06,13.32882769]
[1763997171460,0.1,131.1,131.09,9.78882769]
[1763997171617,0.1,131.1,131.09,9.93098926]
[1763997171824,0.1,131.1,131.09,13.32882769]
[1763997172046,0.82,131.1,131.09,9.78882769]
[1763997172235,0.82,131.1,131.08,9.78882769]
[1763997172833,0.1,131.1,131.08,9.78882769]
[1763997173360,13.43759443,131.09,131.08,9.06882769]
[1763997173561,13.43759443,131.09,131.04,3.54]
[1763997173848,13.43759443,131.09,131.02,3.54]
[1763997173849,13.43759443,131.07,131.02,3.54]
[1763997174037,13.43759443,131.05,131.02,3.54]
[1763997174431,0.68,131.05,131.02,3.54]
[1763997174623,0.68,131.04,131.02,3.54]
[1763997175144,0.68,131.04,130.99,3.54]
[1763997175450,0.68,131.04,131.0,9.78882769]
[1763997176135,14.11759443,131.04,131.0,9.78882769]
[1763997176342,29.74645843,131.03,131.0,9.78882769]
[1763997176528,13.43759443,131.02,131.0,9.78882769]
[1763997176859,14.11759443,131.02,130.97,3.54]
[1763997177059,0.68,131.01,130.98,9.78882769]
[1763997177554,0.68,131.04,130.98,23.22642212]
[1763997177731,16.308864,131.03,130.98,23.22642212]
[1763997177930,16.308864,131.03,130.98,9.78882769]
[1763997178153,0.68,131.02,130.98,23.22642212]
[1763997178661,14.11759443,131.02,130.98,9.78882769]
[1763997178831,29.74645843,131.03,130.98,9.78882769]
[1763997179034,0.68,131.02,130.98,9.78882769]
[1763997179335,0.68,131.02,130.94,13.43759443]
[1763997179336,13.43759443,131.0,130.94,13.43759443]
[1763997179537,0.68,130.99,130.94,3.54]
[1763997179742,16.308864,131.0,130.94,16.97759443]
[1763997179943,16.308864,131.0,130.95,13.43759443]
[1763997180183,16.308864,131.0,130.96,9.78882769]
[1763997180385,0.68,131.04,130.98,23.22642212]
[1763997180543,14.11759443,130.99,130.98,9.78882769]
[1763997180751,16.988864,131.04,130.98,9.78882769]
[1763997181061,18.30886399,131.11,131.0,23.22642212]
[1763997181273,0.68,131.07,131.0,9.93098926]
[1763997181424,0.68,131.07,131.03,9.78882769]
[1763997181635,0.68,131.07,131.03,26.76642212]
[1763997181885,0.1,131.1,131.03,13.32882769]
[1763997182032,16.308864,131.06,131.03,26.76642212]
[1763997182434,16.308864,131.06,131.03,13.32882769]
[1763997182769,14.11759443,131.05,131.03,9.78882769]
[1763997182932,14.11759443,131.05,131.02,3.54]
[1763997183132,16.988864,131.04,131.03,9.78882769]
[1763997183381,16.308864,131.04,131.03,9.78882769]
[1763997183538,0.1,131.1,131.03,9.78882769]
[1763997183890,0.1,131.1,131.07,9.78882769]
[1763997184170,0.1,131.1,131.09,9.78882769]
[1763997184330,0.68,131.09,131.08,9.78882769]
[1763997184679,14.11759443,131.09,131.02,14.09759443]
[1763997184975,14.11759443,131.09,131.06,9.78882769]
[1763997185761,0.1,131.1,131.06,9.78882769]
[1763997186742,14.21759443,131.1,131.06,9.78882769]
[1763997187262,16.308864,131.09,131.06,23.22642212]
[1763997187461,16.308864,131.09,131.05,3.54]
[1763997187462,0.1,131.1,131.08,23.22642212]
[1763997187632,0.1,131.1,131.09,13.32882769]
[1763997188563,0.1,131.1,131.06,3.54]
[1763997188564,14.21759443,131.1,131.06,3.54]
[1763997188938,0.1,131.1,131.07,9.78882769]
[1763997189358,16.408864,131.1,131.07,23.22642212]
[1763997189560,0.1,131.1,131.07,23.22642212]
[1763997189988,0.1,131.1,131.07,9.78882769]
[1763997190285,0.1,131.1,131.07,23.22642212]
[1763997190489,0.1,131.1,131.09,9.78882769]
[1763997190795,0.1,131.1,131.07,9.78882769]
[1763997191087,0.1,131.1,131.09,13.43759443]
[1763997191382,0.1,131.1,131.09,23.22642212]
[1763997191582,0.1,131.1,131.09,24.02858369]
[1763997191994,0.1,131.1,131.09,27.56858369]
[1763997192461,0.1,131.1,131.09,26.76642212]
[1763997192784,0.1,131.1,131.09,13.32882769]
[1763997194576,0.78,131.1,131.09,13.32882769]
[1763997195191,16.408864,131.1,131.09,13.32882769]
[1763997195485,0.1,131.1,131.09,13.32882769]
[1763997195805,0.1,131.1,131.06,3.52]
[1763997195806,14.21759443,131.1,131.06,3.52]
[1763997195966,29.74645843,131.07,131.01,33.55992914]
[1763997196167,13.43759443,131.06,131.02,3.52]
[1763997196379,13.43759443,131.07,131.03,9.78882769]
[1763997196694,16.988864,131.07,131.03,9.78882769]
[1763997197199,16.308864,131.09,131.04,13.43759443]
[1763997197488,16.308864,131.09,131.03,9.78882769]
[1763997197489,13.43759443,131.08,131.05,13.30882769]
[1763997197701,0.1,131.1,131.05,13.30882769]
[1763997197869,0.1,131.1,131.08,9.78882769]
[1763997198067,0.1,131.1,131.08,13.30882769]
[1763997198595,0.1,131.1,131.09,0.66]
[1763997198902,0.1,131.1,131.09,10.59098926]
[1763997199204,0.1,131.1,131.09,24.02858369]
[1763997199787,0.1,131.1,131.09,23.88642212]
[1763997199982,0.1,131.1,131.09,23.22642212]
[1763997200167,0.1,131.1,131.09,23.36858369]
[1763997200372,0.1,131.1,131.09,24.02858369]
[1763997201506,0.1,131.1,131.09,23.36858369]
[1763997202012,0.1,131.1,131.09,9.78882769]
[1763997203139,0.81,131.1,131.09,9.78882769]
[1763997203786,0.1,131.1,131.09,9.78882769]
[1763997204308,12.24278808,131.1,131.09,9.78882769]
[1763997204884,12.24278808,131.1,131.08,3.52]
[1763997205101,16.308864,131.08,131.03,9.78882769]
[1763997205270,11.43278808,131.07,131.05,9.78882769]
[1763997205469,11.43278808,131.08,131.05,9.78882769]
[1763997205697,12.14278808,131.07,131.05,9.78882769]
[1763997205870,28.45165208,131.07,131.05,9.78882769]
[1763997206073,17.018864,131.07,131.05,9.78882769]
[1763997206504,16.308864,131.07,131.05,9.78882769]
[1763997206879,0.1,131.1,131.06,8.77175753]
[1763997207201,0.1,131.1,131.09,9.78882769]
[1763997207202,0.81,131.1,131.09,9.78882769]
[1763997207400,0.1,131.1,131.07,3.52]
[1763997207698,0.1,131.1,131.08,9.78882769]
[1763997207906,0.81,131.1,131.08,9.78882769]
[1763997208075,16.308864,131.09,131.08,9.78882769]
[1763997208408,16.308864,131.09,131.07,3.52]
[1763997208571,16.308864,131.09,131.06,3.52]
[1763997208572,0.71,131.08,131.06,3.52]
[1763997208896,16.308864,131.08,131.07,9.78882769]
[1763997209276,24.40062153,131.08,131.04,3.52]
[1763997209471,16.308864,131.08,131.04,3.52]
[1763997209809,8.09175753,131.05,130.98,8.09175753]
[1763997209972,8.09175753,131.04,131.0,3.52]
[1763997210298,24.40062153,131.06,131.0,11.61175753]
[1763997210515,8.09175753,131.05,131.02,9.78882769]
[1763997210671,16.308864,131.06,131.02,8.09175753]
[1763997210867,25.11062153,131.06,131.01,9.78882769]
[1763997211109,16.308864,131.06,131.02,0.82216157]
[1763997211282,8.19175753,131.1,131.02,0.68]
[1763997211480,16.308864,131.09,131.05,9.78882769]
[1763997211682,16.308864,131.08,131.07,9.78882769]
[1763997212130,24.40062153,131.08,131.07,9.78882769]
[1763997212303,0.81,131.1,131.07,9.78882769]
[1763997212304,8.09175753,131.09,131.07,9.78882769]
[1763997212511,0.81,131.1,131.07,9.78882769]
[1763997212512,16.308864,131.08,131.07,9.78882769]
[1763997213217,24.40062153,131.08,131.07,9.78882769]
[1763997213420,25.11062153,131.08,131.07,9.78882769]
[1763997213601,25.11062153,131.08,131.04,9.78882769]
[1763997213802,8.09175753,131.06,131.04,9.78882769]
[1763997214112,8.09175753,131.05,131.04,9.78882769]
[1763997214436,8.09175753,131.05,131.0,9.78882769]
[1763997214437,16.308864,131.02,131.0,9.78882769]
[1763997214648,25.11062153,131.05,130.95,3.52]
[1763997214649,16.308864,131.0,130.95,3.52]
[1763997214806,16.308864,131.0,130.95,12.29175753]
[1763997215008,8.09175753,130.98,130.95,3.52]
[1763997215224,8.80175753,130.99,130.96,9.78882769]
[1763997215453,16.308864,130.96,130.92,8.09175753]
[1763997215600,8.09175753,130.93,130.89,0.2]
[1763997215803,8.09175753,130.91,130.89,0.2]
[1763997216005,16.308864,130.93,130.89,0.2]
[1763997216238,24.40062153,130.93,130.89,8.97175753]
[1763997216412,0.71,130.95,130.89,8.97175753]
[1763997216613,0.71,131.0,130.93,8.09175753]
[1763997216813,8.09175753,130.97,130.94,9.78882769]
[1763997217327,24.40062153,130.98,130.94,9.78882769]
[1763997217508,8.09175753,131.0,130.96,9.78882769]
[1763997217704,24.40062153,131.0,130.96,9.78882769]
[1763997217903,8.09175753,130.99,130.95,9.78882769]
[1763997218146,8.09175753,130.98,130.95,9.78882769]
[1763997218435,8.09175753,130.97,130.94,9.78882769]
[1763997218641,0.71,130.99,130.94,9.78882769]
[1763997218829,8.09175753,130.97,130.94,9.78882769]
[1763997219007,0.71,130.99,130.94,9.78882769]
[1763997219207,8.09175753,130.97,130.94,9.78882769]
[1763997220313,8.09175753,130.96,130.94,9.78882769]
[1763997220516,17.018864,130.97,130.94,9.78882769]
[1763997220726,8.09175753,130.96,130.94,9.78882769]
[1763997221133,13.61175752,131.04,130.94,9.78882769]
[1763997221437,24.40062153,130.98,130.94,17.88058522]
[1763997221621,16.308864,130.98,130.95,8.09175753]
[1763997221824,8.09175753,130.96,130.94,9.78882769]
[1763997222607,8.09175753,130.95,130.94,9.78882769]
[1763997222912,8.80175753,130.96,130.94,9.78882769]
[1763997223118,8.09175753,130.95,130.94,9.78882769]
[1763997223330,0.71,130.95,130.94,9.78882769]
[1763997223542,25.11062153,130.95,130.9,13.30882769]
[1763997223844,8.09175753,130.93,130.9,13.30882769]
[1763997224028,8.09175753,130.94,130.9,13.30882769]
[1763997224337,8.09175753,130.94,130.9,22.08058522]
[1763997224636,8.09175753,130.94,130.9,13.30882769]
[1763997224637,8.09175753,130.93,130.9,13.30882769]
[1763997225417,8.80175753,130.94,130.9,13.30882769]
[1763997225615,8.09175753,130.93,130.9,13.30882769]
[1763997225819,8.09175753,130.91,130.9,13.30882769]
[1763997226345,8.80175753,130.91,130.9,3.52]
[1763997226545,8.80175753,130.91,130.9,13.30882769]
[1763997226717,8.80175753,130.91,130.89,0.2]
[1763997226926,8.80175753,130.9,130.89,0.2]
[1763997227933,25.11062153,130.9,130.89,0.2]
[1763997228228,8.09175753,130.96,130.89,0.2]
[1763997228229,8.19999999,131.02,130.89,0.2]
[1763997228443,8.09175753,130.93,130.9,9.78882769]
[1763997228632,8.09175753,130.92,130.89,0.2]
[1763997228830,17.008864,130.95,130.89,9.98882769]
[1763997229024,8.09175753,130.94,130.9,3.52]
[1763997229555,8.09175753,130.94,130.91,9.78882769]
[1763997229970,8.09175753,130.95,130.91,9.78882769]
[1763997230119,8.09175753,130.95,130.91,17.88058522]
[1763997230463,16.308864,130.94,130.93,9.78882769]
[1763997230689,8.09175753,130.96,130.92,9.78882769]
[1763997230868,14.08515868,131.04,130.92,9.78882769]
[1763997230869,0.7,131.03,130.96,9.78882769]
[1763997231157,0.7,131.03,130.96,13.30882769]
[1763997231158,8.09175753,130.97,130.96,13.30882769]
[1763997231626,8.79175753,130.97,130.96,13.30882769]
[1763997232325,8.09175753,130.97,130.96,13.30882769]
[1763997233660,8.09175753,130.97,130.93,17.88058522]
[1763997233836,8.09175753,130.98,130.95,9.78882769]
[1763997234153,8.09175753,130.99,130.95,8.09175753]
[1763997234327,8.09175753,130.99,130.94,8.9339191]
[1763997234542,8.09175753,130.98,130.94,0.84216157]
[1763997235171,17.018864,131.01,130.95,8.09175753]
[1763997235464,8.09175753,131.0,130.97,9.78882769]
[1763997235675,8.09175753,131.01,130.97,9.78882769]
[1763997235844,8.09175753,131.01,130.97,10.48882769]
[1763997236043,8.09175753,131.01,130.97,9.78882769]
[1763997236242,0.71,131.03,130.97,9.78882769]
[1763997236467,0.71,131.03,130.96,11.59175753]
[1763997236468,8.09175753,131.02,130.99,9.78882769]
[1763997236774,8.09175753,131.04,130.99,17.88058522]
[1763997237068,8.09175753,131.07,131.0,4.34216157]
[1763997237371,8.09175753,131.05,131.01,9.93098926]
[1763997237664,8.09175753,131.05,131.01,18.02274679]
[1763997237835,8.09175753,131.05,131.01,18.72274679]
[1763997238037,8.09175753,131.08,131.04,0.14216157]
[1763997238252,8.09175753,131.06,131.05,13.28882769]
[1763997238463,8.09175753,131.07,131.05,13.28882769]
[1763997238666,8.09175753,131.08,131.05,13.28882769]
[1763997239043,0.71,131.09,131.05,13.28882769]
[1763997239044,8.09175753,131.07,131.05,13.28882769]
[1763997239361,8.09175753,131.08,131.05,13.28882769]
[1763997239574,0.81,131.1,131.05,13.28882769]
[1763997239758,8.90175753,131.1,131.06,0.14216157]
[1763997239962,25.21062153,131.1,131.06,0.14216157]
[1763997240376,0.1,131.1,131.08,9.78882769]
[1763997240674,0.1,131.1,131.09,21.52274679]
[1763997241187,0.1,131.1,131.09,14.13098926]
[1763997241370,0.1,131.1,131.09,22.22274679]
[1763997241577,0.1,131.1,131.09,9.78882769]
[1763997241957,8.19175753,131.1,131.09,9.78882769]
[1763997242162,8.90175753,131.1,131.07,9.78882769]
[1763997242374,8.09175753,131.08,131.07,9.78882769]
[1763997242581,8.09175753,131.09,131.07,9.78882769]
[1763997242755,8.09175753,131.08,131.07,9.78882769]
[1763997242955,0.1,131.1,131.07,9.78882769]
[1763997243189,8.19175753,131.1,131.07,9.78882769]
[1763997243687,8.09175753,131.09,131.07,9.78882769]
[1763997243987,0.1,131.1,131.07,9.78882769]
[1763997244185,8.09175753,131.09,131.07,9.78882769]
[1763997244490,8.19175753,131.1,131.07,9.78882769]
[1763997244696,0.1,131.1,131.08,0.84216157]
[1763997244853,0.1,131.1,131.08,0.7]
[1763997245056,8.19175753,131.1,131.07,9.78882769]
[1763997245466,0.1,131.1,131.07,17.88058522]
[1763997245782,0.1,131.2,131.13,16.308864]
[1763997245995,0.1,131.2,131.18,9.78882769]
[1763997246154,0.1,131.23,131.2,9.78882769]
[1763997246355,0.1,131.23,131.22,8.09175753]
[1763997246666,0.1,131.23,131.22,18.02274679]
[1763997246862,0.1,131.23,131.22,9.93098926]
[1763997247351,0.1,131.23,131.22,9.78882769]
[1763997247556,0.1,131.23,131.22,13.30882769]
[1763997248880,0.1,131.23,131.22,22.07274679]
[1763997249265,0.1,131.23,131.22,21.54274679]
[1763997249463,0.1,131.23,131.22,22.07274679]
[1763997250497,0.1,131.24,131.23,18.02274679]
[1763997250781,0.1,131.24,131.23,18.55274679]
[1763997250996,0.1,131.24,131.23,10.46098926]
[1763997251167,0.1,131.24,131.23,9.93098926]
[1763997251377,0.1,131.24,131.23,9.78882769]
[1763997251571,0.1,131.24,131.22,3.52]
[1763997251777,0.1,131.24,131.23,9.78882769]
[1763997251976,0.1,131.24,131.23,18.02274679]
[1763997252469,0.1,131.24,131.23,18.55274679]
[1763997253099,16.308864,131.33,131.24,0.14216157]
[1763997253263,8.80175753,131.32,131.29,9.78882769]
[1763997253458,0.1,131.34,131.29,13.30882769]
[1763997253459,8.09175753,131.33,131.29,13.30882769]
[1763997253661,8.09175753,131.33,131.29,21.40058522]
[1763997253966,8.09175753,131.32,131.29,13.30882769]
[1763997254385,8.80175753,131.33,131.29,13.30882769]
[1763997254579,16.408864,131.34,131.26,8.09175753]
[1763997254580,8.09175753,131.3,131.26,8.09175753]
[1763997254787,8.09175753,131.3,131.29,9.78882769]
[1763997254957,8.09175753,131.31,131.29,9.78882769]
[1763997255158,0.1,131.34,131.29,17.88058522]
[1763997255506,0.1,131.34,131.32,17.88058522]
[1763997255667,0.1,131.34,131.33,21.52274679]
[1763997255866,0.1,131.34,131.33,9.78882769]
[1763997256089,8.90175753,131.34,131.33,9.78882769]
[1763997256303,25.21062153,131.34,131.33,9.78882769]
[1763997257366,25.21062153,131.34,131.31,3.5]
[1763997257567,0.71,131.33,131.32,9.78882769]
[1763997257791,0.71,131.33,131.31,3.5]
[1763997257792,8.80175753,131.33,131.31,3.5]
[1763997257992,0.71,131.33,131.32,9.78882769]
[1763997258226,16.408864,131.34,131.32,9.78882769]
[1763997258376,16.408864,131.34,131.29,9.78882769]
[1763997258709,0.71,131.33,131.29,9.78882769]
[1763997259017,8.09175753,131.31,131.29,9.78882769]
[1763997259164,8.09175753,131.3,131.21,0.53]
[1763997259366,16.308864,131.31,131.25,8.09175753]
[1763997259367,8.09175753,131.29,131.25,8.09175753]
[1763997259589,8.09175753,131.3,131.27,9.78882769]
[1763997259761,24.40062153,131.31,131.27,17.88058522]
[1763997259964,8.80175753,131.32,131.27,17.88058522]
[1763997260199,8.80175753,131.32,131.27,9.78882769]
[1763997260408,8.09175753,131.31,131.27,17.88058522]
[1763997260762,8.09175753,131.28,131.23,8.09175753]
[1763997260963,8.09175753,131.24,131.17,0.53]
[1763997261288,8.09175753,131.21,131.2,3.5]
[1763997261496,8.09175753,131.21,131.2,13.28882769]
[1763997261692,0.71,131.24,131.21,9.78882769]
[1763997261996,0.71,131.26,131.21,17.88058522]
[1763997262295,2.09999999,131.34,131.23,17.88058522]
[1763997262296,16.308864,131.3,131.23,17.88058522]
[1763997262469,8.09175753,131.29,131.25,9.78882769]
[1763997262670,12.63926496,131.29,131.25,22.42809265]
[1763997263174,13.33926496,131.29,131.25,22.42809265]
[1763997263387,0.7,131.29,131.25,22.42809265]
[1763997263591,13.33926496,131.29,131.25,9.78882769]
[1763997263909,12.63926496,131.29,131.27,9.78882769]
[1763997264092,13.33926496,131.29,131.26,0.14216157]
[1763997264265,13.33926496,131.29,131.25,9.78882769]
[1763997264691,0.7,131.29,131.25,9.78882769]
[1763997264888,13.33926496,131.29,131.25,9.78882769]
[1763997265124,12.63926496,131.28,131.25,9.78882769]
[1763997265291,13.33926496,131.28,131.25,9.78882769]
[1763997265492,0.7,131.33,131.27,9.78882769]
[1763997265691,12.63926496,131.28,131.26,9.78882769]
[1763997266293,13.33926496,131.28,131.26,9.78882769]
[1763997266907,0.7,131.31,131.26,9.78882769]
[1763997267123,0.7,131.3,131.26,9.78882769]
[1763997267418,0.1,131.34,131.28,9.78882769]
[1763997267419,12.63926496,131.32,131.28,9.78882769]
[1763997267622,12.63926496,131.32,131.3,9.78882769]
[1763997267819,0.1,131.34,131.3,9.78882769]
[1763997268023,0.1,131.34,131.31,0.14216157]
[1763997268594,0.1,131.34,131.3,22.42809265]
[1763997268897,12.63926496,131.32,131.3,9.78882769]
[1763997269431,0.8,131.34,131.3,9.78882769]
[1763997269639,12.63926496,131.32,131.3,9.78882769]
[1763997269796,12.63926496,131.31,131.3,9.78882769]
[1763997270002,12.63926496,131.33,131.3,9.78882769]
[1763997270213,0.7,131.33,131.3,9.78882769]
[1763997270414,13.33926496,131.33,131.3,9.78882769]
[1763997270612,0.1,131.34,131.33,9.78882769]
[1763997270928,0.1,131.34,131.33,13.28882769]
[1763997271125,0.1,131.34,131.33,26.07025422]
[1763997271517,0.1,131.39,131.34,0.14216157]
[1763997271726,0.1,131.39,131.38,22.57025422]
[1763997271929,0.1,131.39,131.38,26.07025422]
[1763997272108,12.73926496,131.39,131.38,13.28882769]
[1763997272621,0.1,131.39,131.38,26.07025422]
[1763997273332,0.1,131.39,131.38,34.01176282]
[1763997273533,0.1,131.43,131.39,9.93098926]
[1763997273743,0.1,131.43,131.42,0.14216157]
[1763997273905,0.1,131.43,131.42,13.43098926]
[1763997274227,0.1,131.43,131.42,26.07025422]
[1763997274636,0.1,131.43,131.42,26.40025422]
[1763997274809,0.1,131.43,131.42,26.07025422]
[1763997275430,0.1,131.43,131.42,13.43098926]
[1763997275902,0.1,131.43,131.42,26.07025422]
[1763997276102,12.63926496,131.48,131.42,26.40025422]
[1763997276298,0.7,131.5,131.45,9.93098926]
[1763997276532,12.63926496,131.49,131.47,9.78882769]
[1763997276938,169.19999999,131.56,131.47,22.42809265]
[1763997276939,12.63926496,131.51,131.47,22.42809265]
[1763997277128,12.63926496,131.5,131.47,9.78882769]
[1763997277325,12.63926496,131.49,131.47,9.78882769]
[1763997277510,12.63926496,131.48,131.45,3.5]
[1763997277715,12.63926496,131.46,131.45,3.5]
[1763997278042,0.7,131.51,131.46,9.78882769]
[1763997278536,12.63926496,131.5,131.46,9.78882769]
[1763997278710,12.63926496,131.5,131.46,22.42809265]
[1763997278913,13.33926496,131.5,131.46,9.78882769]
[1763997279324,12.63926496,131.47,131.45,3.5]
[1763997279550,0.7,131.49,131.46,9.78882769]
[1763997279849,0.7,131.48,131.4,16.308864]
[1763997280034,0.7,131.48,131.41,3.5]
[1763997280234,0.7,131.48,131.42,9.93098926]
[1763997280410,0.7,131.48,131.41,13.28882769]
[1763997280610,12.63926496,131.47,131.43,0.14216157]
[1763997280814,0.7,131.48,131.45,9.78882769]
[1763997281131,12.63926496,131.46,131.45,9.78882769]
[1763997281632,13.33926496,131.46,131.45,9.78882769]
[1763997282350,0.7,131.46,131.45,9.78882769]
[1763997282537,13.33926496,131.46,131.45,9.78882769]
[1763997282842,167.2,131.55,131.45,9.78882769]
[1763997283020,12.63926496,131.49,131.45,22.42809265]
[1763997283343,0.7,131.51,131.46,0.14216157]
[1763997283344,13.33926496,131.51,131.46,0.14216157]
[1763997283537,0.7,131.51,131.47,13.28882769]
[1763997283715,13.33926496,131.51,131.47,13.28882769]
[1763997284345,0.7,131.5,131.47,13.28882769]
[1763997284518,13.33926496,131.5,131.47,13.28882769]
[1763997285019,12.63926496,131.5,131.47,13.28882769]
[1763997285220,13.33926496,131.5,131.47,13.28882769]
[1763997285626,12.63926496,131.48,131.47,13.28882769]
[1763997285844,13.33926496,131.48,131.47,13.28882769]
[1763997286138,13.33926496,131.48,131.45,9.78882769]
[1763997286520,12.63926496,131.47,131.45,9.78882769]
[1763997286824,12.63926496,131.46,131.45,9.78882769]
[1763997287039,12.63926496,131.46,131.45,9.06882769]
[1763997287040,13.33926496,131.46,131.45,9.06882769]
[1763997287242,29.64812896,131.46,131.45,9.06882769]
[1763997288154,29.64812896,131.46,131.4,3.5]
[1763997288346,12.63926496,131.43,131.4,3.5]
[1763997288751,12.63926496,131.42,131.4,3.5]
[1763997288959,12.63926496,131.45,131.4,16.84926496]
[1763997289173,28.94812896,131.46,131.43,9.78882769]
[1763997289335,28.94812896,131.46,131.45,9.78882769]
[1763997289531,12.63926496,131.47,131.45,9.78882769]
[1763997289751,12.63926496,131.46,131.45,9.78882769]
[1763997290147,12.63926496,131.46,131.41,12.78142653]
[1763997290148,13.29926496,131.46,131.41,9.93098926]
[1763997290345,0.66,131.45,131.43,9.78882769]
[1763997290843,0.66,131.48,131.43,9.78882769]
[1763997291546,12.63926496,131.44,131.43,9.78882769]
[1763997291953,13.29926496,131.44,131.39,3.5]
[1763997292137,12.63926496,131.41,131.39,3.5]
[1763997292339,16.308864,131.46,131.39,3.5]
[1763997292579,12.63926496,131.42,131.39,3.5]
[1763997293450,12.63926496,131.41,131.39,3.5]
[1763997293843,0.71,131.42,131.4,9.78882769]
[1763997294165,12.63926496,131.41,131.4,9.78882769]
[1763997294975,12.63926496,131.42,131.4,9.78882769]
[1763997295469,12.63926496,131.41,131.4,9.78882769]
[1763997296542,13.34926496,131.41,131.35,9.78882769]
[1763997296745,12.63926496,131.39,131.38,9.78882769]
[1763997297271,12.63926496,131.42,131.38,10.47882769]
[1763997297439,16.308864,131.46,131.38,10.47882769]
[1763997297440,12.63926496,131.4,131.38,9.78882769]
[1763997297950,12.63926496,131.41,131.38,9.78882769]
[1763997299043,12.63926496,131.42,131.4,9.78882769]
[1763997299455,12.63926496,131.42,131.38,9.78882769]
[1763997299756,16.13926496,131.54,131.41,12.63926496]
[1763997300065,12.63926496,131.44,131.42,3.5]
[1763997300266,0.71,131.47,131.4,9.78882769]
[1763997300267,12.63926496,131.43,131.4,9.78882769]
[1763997300481,167.91,131.5,131.42,22.42809265]
[1763997300667,0.71,131.5,131.44,9.78882769]
[1763997300847,0.71,131.52,131.44,9.78882769]
[1763997301043,0.71,131.52,131.46,9.78882769]
[1763997301253,0.71,131.52,131.45,0.69]
[1763997301254,12.63926496,131.5,131.48,9.78882769]
[1763997301470,0.71,131.52,131.48,9.78882769]
[1763997301471,12.63926496,131.49,131.48,9.78882769]
[1763997301784,17.018864,131.51,131.44,0.69]
[1763997301945,12.63926496,131.51,131.48,9.78882769]
[1763997302162,41.58739392,131.49,131.43,3.5]
[1763997302488,16.308864,131.46,131.41,9.78882769]
[1763997302670,16.308864,131.46,131.4,9.78882769]
[1763997302875,0.71,131.48,131.4,10.47882769]
[1763997303077,0.71,131.47,131.41,0.69]
[1763997303294,12.63926496,131.44,131.41,0.83216157]
[1763997303485,12.63926496,131.44,131.41,0.14216157]
[1763997303675,16.308864,131.46,131.31,65.40082157]
[1763997303676,12.63926496,131.42,131.31,65.40082157]
[1763997303872,12.63926496,131.4,131.37,9.78882769]
[1763997304191,12.63926496,131.41,131.39,9.78882769]
[1763997304489,0.71,131.44,131.39,9.78882769]
[1763997304683,12.63926496,131.42,131.39,9.78882769]
[1763997305095,12.63926496,131.41,131.39,9.78882769]
[1763997305461,13.34926496,131.4,131.32,9.78882769]
[1763997305669,12.63926496,131.36,131.33,3.5]
[1763997305902,12.63926496,131.34,131.33,3.5]
[1763997306073,12.63926496,131.34,131.3,3.5]
[1763997306263,12.63926496,131.35,131.3,3.5]
[1763997306464,12.63926496,131.35,131.32,9.78882769]
[1763997306659,0.71,131.4,131.34,9.78882769]
[1763997306963,0.71,131.4,131.33,12.63926496]
[1763997306964,12.63926496,131.38,131.36,9.78882769]
[1763997307180,12.63926496,131.39,131.36,9.78882769]
[1763997307386,12.63926496,131.4,131.36,9.78882769]
[1763997307686,12.63926496,131.38,131.34,13.28882769]
[1763997307883,16.308864,131.41,131.36,9.78882769]
[1763997308093,28.94812896,131.41,131.36,22.42809265]
[1763997308314,28.94812896,131.41,131.36,23.11809265]
[1763997308968,12.63926496,131.38,131.33,13.32926496]
[1763997309163,12.63926496,131.38,131.35,9.78882769]